bitfinex/quotes_BTCUSD_20250114
["timestamp","ask_amount","ask_price","bid_price","bid_amount"]
[1736890271166,0.27544705,96556.0,96555.0,0.08029219]
[1736890271375,0.01526013,96556.0,96555.0,0.08029219]
[1736890271936,0.14146493,96556.0,96555.0,0.08029219]
[1736890272123,0.14146493,96556.0,96555.0,0.00109219]
[1736890272124,0.14972229,96556.0,96555.0,0.00109219]
[1736890272566,0.29772229,96556.0,96555.0,0.00109219]
[1736890272769,0.52072229,96556.0,96555.0,0.00109219]
[1736890273453,0.52772229,96556.0,96555.0,0.00109219]
[1736890273662,0.52072229,96556.0,96555.0,0.00109219]
[1736890273842,0.53352838,96556.0,96555.0,0.00109219]
[1736890274162,0.54252838,96556.0,96555.0,0.00109219]
[1736890274356,0.53352838,96556.0,96555.0,0.00109219]
[1736890274746,0.54252838,96556.0,96555.0,0.00109219]
[1736890276375,0.54052838,96556.0,96555.0,0.00109219]
[1736890276579,0.54552838,96556.0,96555.0,0.00109219]
[1736890277696,0.49748428,96556.0,96555.0,0.00109219]
[1736890278905,0.50344428,96556.0,96555.0,0.00109219]
[1736890280782,0.50344428,96556.0,96555.0,0.00194649]
[1736890285544,0.50261644,96556.0,96555.0,0.00194649]
[1736890295699,0.50011917,96556.0,96555.0,0.00194649]
[1736890295871,0.57100319,96556.0,96555.0,0.00194649]
[1736890297754,0.56504319,96556.0,96555.0,0.00194649]
[1736890297914,0.57100319,96556.0,96555.0,0.00194649]
[1736890301215,0.70973354,96556.0,96555.0,0.00194649]
[1736890302237,0.9127974,96556.0,96555.0,0.00194649]
[1736890303209,1.0977712,96556.0,96555.0,0.00194649]
[1736890303617,1.09956544,96556.0,96555.0,0.00194649]
[1736890305029,0.91459164,96556.0,96555.0,0.00194649]
[1736890305244,0.90863164,96556.0,96555.0,0.00194649]
[1736890305453,0.91459164,96556.0,96555.0,0.00194649]
[1736890305952,1.14580889,96556.0,96555.0,0.00194649]
[1736890308250,0.91459164,96556.0,96555.0,0.00194649]
[1736890321009,0.82070762,96556.0,96555.0,0.00194649]
[1736890325263,0.84370762,96556.0,96555.0,0.00194649]
[1736890339218,0.71474762,96556.0,96555.0,0.00194649]
[1736890339426,0.72070762,96556.0,96555.0,0.00194649]
[1736890340348,0.71474762,96556.0,96555.0,0.00194649]
[1736890340561,0.71170762,96556.0,96555.0,0.00194649]
[1736890340732,0.71570762,96556.0,96555.0,0.00194649]
[1736890340931,0.71870762,96556.0,96555.0,0.00194649]
[1736890341142,0.82293454,96556.0,96555.0,0.00194649]
[1736890343868,0.61866762,96556.0,96555.0,0.00194649]
[1736890344074,0.71866762,96556.0,96555.0,0.00194649]
[1736890349615,0.81866762,96556.0,96555.0,0.00194649]
[1736890349814,0.84166762,96556.0,96555.0,0.00194649]
[1736890350633,0.83266762,96556.0,96555.0,0.00194649]
[1736890350787,0.94589454,96556.0,96555.0,0.00194649]
[1736890351013,0.94289454,96556.0,96555.0,0.00194649]
[1736890351191,0.94689454,96556.0,96555.0,0.00194649]
[1736890352683,1.1047552,96556.0,96555.0,4.9e-07]
[1736890352885,1.1047552,96556.0,96521.0,0.0791]
[1736890352886,0.207206,96522.0,96521.0,0.0791]
[1736890353088,0.40451342,96522.0,96521.0,0.00014852]
[1736890353306,0.41056796,96522.0,96521.0,0.00014852]
[1736890354175,0.32340746,96522.0,96521.0,0.00014852]
[1736890354767,0.66520167,96522.0,96521.0,0.00014852]
[1736890354913,0.66620167,96522.0,96521.0,0.00014852]
[1736890356157,0.76620167,96522.0,96521.0,0.00014852]
[1736890356399,0.78460132,96522.0,96521.0,0.00014852]
[1736890356608,0.88082824,96522.0,96521.0,0.00014852]
[1736890356802,0.87982824,96522.0,96521.0,0.00014852]
[1736890357055,1.1206889,96522.0,96521.0,0.00014852]
[1736890357223,1.1226889,96522.0,96521.0,0.00014852]
[1736890358006,1.2726889,96522.0,96521.0,0.00014852]
[1736890359040,1.2726889,96522.0,96521.0,0.00154592]
[1736890359251,1.4285889,96522.0,96521.0,0.00154592]
[1736890359551,1.5285889,96522.0,96521.0,0.00154592]
[1736890359887,1.5175889,96522.0,96521.0,0.00154592]
[1736890360057,1.29472824,96522.0,96521.0,0.00154592]
[1736890360289,1.2836737,96522.0,96521.0,0.00154592]
[1736890360682,1.2886737,96522.0,96521.0,0.00239932]
[1736890360883,1.2936737,96522.0,96521.0,0.00239932]
[1736890363814,1.2936737,96522.0,96521.0,0.00174932]
[1736890364265,1.52520056,96522.0,96521.0,0.00174932]
[1736890365960,1.2936737,96522.0,96521.0,0.00174932]
[1736890366791,1.47885843,96522.0,96521.0,0.00174932]
[1736890367610,1.2936737,96522.0,96521.0,0.00174932]
[1736890368864,1.2936737,96522.0,96521.0,3.2e-07]
[1736890369724,0.457251,96501.0,96494.0,0.0008537]
[1736890369933,0.68165192,96501.0,96500.0,0.01688861]
[1736890370900,0.91455192,96501.0,96500.0,0.01688861]
[1736890371299,0.91555192,96501.0,96500.0,0.01688861]
[1736890371771,0.92602987,96501.0,96500.0,0.01688861]
[1736890371970,0.92502987,96501.0,96500.0,0.01688861]
[1736890372474,0.93302987,96501.0,96500.0,0.01688861]
[1736890372655,0.92502987,96501.0,96500.0,0.01688861]
[1736890372902,0.93402987,96501.0,96500.0,0.01688861]
[1736890373289,0.93902987,96501.0,96500.0,0.01688861]
[1736890374113,0.95933195,96501.0,96500.0,0.01688861]
[1736890379803,0.82643195,96501.0,96500.0,0.01688861]
[1736890382726,0.69187587,96501.0,96500.0,0.01688861]
[1736890383511,0.71487587,96501.0,96500.0,0.01688861]
[1736890385671,0.61487587,96501.0,96500.0,0.01688861]
[1736890385870,0.71487587,96501.0,96500.0,0.01688861]
[1736890387769,0.61487587,96501.0,96500.0,0.01688861]
[1736890387947,0.81910279,96501.0,96500.0,0.01688861]
[1736890388687,0.81318279,96501.0,96500.0,0.01688861]
[1736890388903,0.11822692,96501.0,96500.0,0.14528861]
[1736890389707,0.15,96501.0,96500.0,0.14528861]
[1736890389880,0.03,96502.0,96500.0,0.14528861]
[1736890390087,0.012,96501.0,96500.0,0.14528861]
[1736890390502,0.009,96501.0,96500.0,0.35254161]
[1736890390705,0.00179277,96521.0,96500.0,0.35254161]
[1736890390706,0.00179277,96521.0,96501.0,0.0799]
[1736890390957,0.00179277,96521.0,96520.0,0.0485]
[1736890391112,0.00179277,96521.0,96520.0,0.33664584]
[1736890391468,0.00179277,96521.0,96520.0,0.33561]
[1736890391835,0.00179277,96521.0,96520.0,0.4106138]
[1736890392417,0.00179277,96521.0,96520.0,0.4116138]
[1736890393452,0.00179277,96521.0,96520.0,0.4126138]
[1736890394269,0.00179277,96521.0,96520.0,0.33761]
[1736890394681,0.00179277,96521.0,96520.0,0.34817371]
[1736890395585,0.00179277,96521.0,96520.0,0.33761]
[1736890395791,0.00179277,96521.0,96520.0,0.1304]
[1736890396737,0.00179277,96521.0,96520.0,0.1294]
[1736890397592,0.00179277,96521.0,96520.0,0.0809]
[1736890397771,0.00179277,96521.0,96520.0,0.0799]
[1736890398127,0.00179277,96521.0,96520.0,0.0809]
[1736890398333,0.00179277,96521.0,96520.0,0.0799]
[1736890398729,0.00279277,96521.0,96520.0,0.0799]
[1736890408299,0.00279277,96521.0,96513.0,0.0822]
[1736890408499,0.00279277,96521.0,96502.0,0.207249]
[1736890408500,0.34761547,96520.0,96502.0,0.207249]
[1736890408925,0.207215,96518.0,96502.0,0.207249]
[1736890409128,0.10422692,96517.0,96502.0,0.207249]
[1736890409327,0.108802,96517.0,96502.0,0.207249]
[1736890409538,0.108802,96517.0,96502.0,0.414498]
[1736890409769,0.108802,96517.0,96505.0,0.207241]
[1736890409905,0.00457508,96517.0,96505.0,0.207241]
[1736890410108,0.00457508,96517.0,96509.0,0.207233]
[1736890410351,0.001,96520.0,96509.0,0.207233]
[1736890410524,0.10522692,96520.0,96506.0,0.00103615]
[1736890410725,0.00457522,96519.0,96506.0,0.00103615]
[1736890411740,0.005,96517.0,96506.0,0.00103615]
[1736890411943,0.00457522,96519.0,96506.0,0.00103615]
[1736890412141,0.10422692,96520.0,96506.0,0.00103615]
[1736890412142,0.00457434,96516.0,96506.0,0.00103615]
[1736890412385,0.00455476,96518.0,96506.0,0.00203615]
[1736890412656,0.207229,96512.0,96501.0,0.0830538]
[1736890412823,0.10422692,96511.0,96506.0,0.001]
[1736890413199,0.00455242,96510.0,96501.0,0.0830538]
[1736890413397,0.10422692,96509.0,96501.0,0.0830538]
[1736890413769,0.21178883,96508.0,96501.0,0.0830538]
[1736890415203,0.21278883,96508.0,96501.0,0.0830538]
[1736890416040,0.21178883,96508.0,96501.0,0.0830538]
[1736890416271,0.21578883,96508.0,96501.0,0.0830538]
[1736890417662,0.05494131,96507.0,96501.0,0.0008538]
[1736890418005,0.05949329,96507.0,96501.0,0.0008538]
[1736890418413,0.00455198,96507.0,96501.0,0.0008538]
[1736890418819,0.211237,96508.0,96501.0,0.0008538]
[1736890419207,0.004,96508.0,96501.0,0.0008538]
[1736890420342,0.10422692,96509.0,96501.0,0.0008538]
[1736890420674,0.003,96507.0,96501.0,0.0008538]
[1736890421512,0.21024,96507.0,96501.0,0.0008538]
[1736890421868,0.10422692,96509.0,96501.0,0.0008538]
[1736890422082,0.004,96508.0,96501.0,0.0008538]
[1736890422709,0.10422692,96509.0,96501.0,0.0008538]
[1736890422924,0.004,96507.0,96501.0,0.0008538]
[1736890423138,0.211238,96507.0,96501.0,0.0008538]
[1736890423473,0.10422692,96509.0,96501.0,0.0008538]
[1736890423691,0.005,96508.0,96501.0,0.0008538]
[1736890423958,0.10422692,96509.0,96501.0,0.0008538]
[1736890424217,0.207249,96502.0,96501.0,0.0008538]
[1736890424466,0.31147592,96502.0,96501.0,0.0008538]
[1736890425668,0.10422692,96502.0,96501.0,0.0008538]
[1736890425908,0.10622692,96502.0,96501.0,0.0008538]
[1736890426600,0.10422692,96502.0,96501.0,0.0008538]
[1736890426830,0.10922692,96502.0,96501.0,0.0018538]
[1736890429605,0.005,96502.0,96501.0,0.0018538]
[1736890434903,0.00679299,96502.0,96501.0,0.0018538]
[1736890449148,0.00679299,96502.0,96501.0,0.02567962]
[1736890449368,0.00679299,96502.0,96501.0,0.02567953]
[1736890450021,0.00679299,96502.0,96501.0,0.0028899]
[1736890452947,0.00679299,96502.0,96501.0,0.0789899]
[1736890453170,0.00679299,96502.0,96501.0,0.23271682]
[1736890453347,0.00679299,96502.0,96501.0,0.23168072]
[1736890454150,0.00179299,96502.0,96501.0,0.23068072]
[1736890454350,0.00279299,96502.0,96501.0,0.34290764]
[1736890454553,0.00379299,96502.0,96501.0,0.34290764]
[1736890455475,0.00379299,96502.0,96501.0,0.36383581]
[1736890457524,0.00379299,96502.0,96501.0,0.45699639]
[1736890458441,0.00379299,96502.0,96501.0,0.36383581]
[1736890463029,0.00379299,96502.0,96501.0,0.51383581]
[1736890463242,0.00379299,96502.0,96501.0,0.61383581]
[1736890464001,0.00351839,96502.0,96501.0,0.61383581]
[1736890464203,0.00351839,96502.0,96501.0,0.71383581]
[1736890465498,0.00324379,96502.0,96501.0,0.61383581]
[1736890465701,0.00324379,96502.0,96501.0,0.71383581]
[1736890468540,7.9e-07,96502.0,96501.0,0.71383581]
[1736890468758,7.9e-07,96502.0,96501.0,0.73683581]
[1736890470014,7.8e-07,96502.0,96501.0,0.73683581]
[1736890471027,0.00179299,96519.0,96518.0,0.333215]
[1736890471226,0.00179299,96519.0,96518.0,0.51220942]
[1736890472250,0.00179299,96519.0,96518.0,0.61420942]
[1736890472695,0.00279299,96519.0,96518.0,0.62120942]
[1736890472901,0.00379299,96519.0,96518.0,0.62320942]
[1736890473656,0.00379299,96519.0,96518.0,0.6434389]
[1736890474235,0.00379299,96519.0,96518.0,0.6541927]
[1736890475572,0.00379299,96519.0,96518.0,0.8041927]
[1736890475806,0.00379299,96519.0,96518.0,0.9041927]
[1736890477104,5.3e-07,96522.0,96521.0,0.640008]
[1736890477331,5.3e-07,96522.0,96521.0,0.74423492]
[1736890478074,0.00179424,96556.0,96544.0,0.12384125]
[1736890478279,0.00179424,96556.0,96555.0,0.207135]
[1736890478487,0.00179424,96556.0,96555.0,0.24959792]
[1736890478661,0.00179424,96556.0,96555.0,0.2485624]
[1736890479514,0.00584373,96556.0,96555.0,0.2495624]
[1736890479685,0.00584373,96556.0,96555.0,0.43658932]
[1736890480148,0.00184373,96556.0,96555.0,0.43658932]
[1736890480689,0.00184373,96556.0,96555.0,0.43558932]
[1736890481299,0.00184373,96556.0,96555.0,0.43758932]
[1736890481740,0.00184373,96556.0,96555.0,0.44792167]
[1736890490833,0.00184373,96556.0,96555.0,0.59792167]
[1736890491042,0.00184373,96556.0,96555.0,0.64622167]
[1736890491246,7.6e-07,96561.0,96555.0,0.74622167]
[1736890491454,7.6e-07,96561.0,96560.0,0.433625]
[1736890491661,7.6e-07,96561.0,96560.0,0.53785192]
[1736890493046,7.6e-07,96561.0,96560.0,0.54385192]
[1736890493251,7.6e-07,96561.0,96560.0,0.74385192]
[1736890493449,7.6e-07,96561.0,96560.0,0.64385192]
[1736890493626,7.6e-07,96561.0,96560.0,0.2918925]
[1736890494582,7.6e-07,96561.0,96560.0,0.2878925]
[1736890494717,7.6e-07,96561.0,96560.0,0.213125]
[1736890494903,0.08170076,96561.0,96560.0,0.009]
[1736890495118,0.1320877,96561.0,96560.0,0.009]
[1736890495328,0.1320877,96561.0,96560.0,0.003]
[1736890495724,0.1320877,96561.0,96560.0,0.007]
[1736890495961,0.1320877,96561.0,96560.0,0.003]
[1736890496278,0.1340877,96561.0,96560.0,0.003]
[1736890496906,0.1340877,96561.0,96556.0,0.207133]
[1736890497097,0.1340877,96561.0,96560.0,0.004]
[1736890497440,0.12910076,96561.0,96556.0,0.207133]
[1736890497847,0.00497211,96560.0,96556.0,0.207133]
[1736890498605,0.00497211,96560.0,96556.0,0.208133]
[1736890499485,0.00597211,96560.0,96556.0,0.208133]
[1736890499853,0.00597211,96560.0,96556.0,0.207133]
[1736890500215,0.00597211,96560.0,96556.0,0.208133]
[1736890500826,0.00597211,96560.0,96556.0,0.415266]
[1736890501021,0.00597211,96560.0,96556.0,0.208133]
[1736890501278,0.082,96559.0,96556.0,0.001]
[1736890501654,0.00491349,96558.0,96556.0,0.001]
[1736890502270,0.082,96557.0,96556.0,0.001]
[1736890502743,0.08691202,96557.0,96556.0,0.001]
[1736890502950,0.08691202,96557.0,96548.0,0.00103563]
[1736890503151,0.08691202,96557.0,96549.0,0.02187436]
[1736890503575,0.08691202,96557.0,96550.0,0.207146]
[1736890503784,0.08891202,96557.0,96550.0,0.207146]
[1736890504316,0.08991202,96557.0,96549.0,0.02187436]
[1736890504464,0.08991202,96557.0,96548.0,0.00103563]
[1736890504662,0.08891202,96557.0,96548.0,0.00103563]
[1736890505061,0.08791202,96557.0,96548.0,0.00103563]
[1736890505311,0.09191202,96557.0,96556.0,0.0008533]
[1736890505713,0.08791202,96557.0,96556.0,0.0008533]
[1736890505913,0.09191202,96557.0,96556.0,0.0008533]
[1736890506415,0.08791202,96557.0,96556.0,0.0008533]
[1736890506642,0.09091202,96557.0,96556.0,0.0008533]
[1736890507050,0.09191202,96557.0,96556.0,0.0008533]
[1736890507406,0.10715216,96557.0,96556.0,0.0008533]
[1736890507537,0.09091202,96557.0,96556.0,0.0008533]
[1736890507739,0.09191202,96557.0,96556.0,0.0008533]
[1736890509752,0.09191202,96557.0,96556.0,0.02165303]
[1736890510888,0.00991202,96557.0,96556.0,0.02165303]
[1736890511015,0.005,96557.0,96556.0,0.02165303]
[1736890511437,0.001,96557.0,96556.0,0.02165303]
[1736890511642,0.04540076,96561.0,96556.0,0.02165303]
[1736890511857,0.04540076,96561.0,96557.0,0.43828001]
[1736890512062,7.6e-07,96561.0,96557.0,0.43724446]
[1736890512256,7.6e-07,96561.0,96559.0,0.207127]
[1736890512465,7.6e-07,96561.0,96560.0,0.00103552]
[1736890512669,7.6e-07,96561.0,96560.0,0.0010355]
[1736890512875,0.00100076,96561.0,96560.0,0.0010355]
[1736890513086,0.00100076,96561.0,96560.0,0.07442814]
[1736890513436,7.6e-07,96561.0,96560.0,0.07442814]
[1736890513620,0.00100076,96561.0,96560.0,0.07442814]
[1736890514306,0.00100076,96561.0,96560.0,0.07542814]
[1736890514530,0.00100076,96561.0,96560.0,0.0020355]
[1736890514734,7.6e-07,96561.0,96560.0,0.0020355]
[1736890515134,0.00100076,96561.0,96560.0,0.02319725]
[1736890515333,0.00100076,96561.0,96560.0,0.02219725]
[1736890515538,7.6e-07,96561.0,96560.0,0.09540782]
[1736890515701,7.6e-07,96561.0,96560.0,0.02319725]
[1736890516731,7.6e-07,96561.0,96560.0,0.02519725]
[1736890521233,7.6e-07,96561.0,96560.0,0.003]
[1736890521677,0.00486039,96561.0,96560.0,0.003]
[1736890522077,0.00486039,96561.0,96560.0,0.002]
[1736890522293,0.00786039,96561.0,96560.0,0.002]
[1736890522539,0.00786039,96561.0,96560.0,0.0448417]
[1736890522711,0.00486039,96561.0,96560.0,0.002]
[1736890522854,0.00586039,96561.0,96556.0,0.0008533]
[1736890523266,0.00100076,96561.0,96556.0,0.0008533]
[1736890523680,0.00488697,96560.0,96556.0,0.0008533]
[1736890524954,0.00588697,96560.0,96556.0,0.0008533]
[1736890525116,0.00988697,96560.0,96556.0,0.0008533]
[1736890530113,0.207127,96559.0,96556.0,0.0008533]
[1736890530569,0.00488873,96558.0,96556.0,0.0008533]
[1736890530788,0.005,96560.0,96556.0,0.0008533]
[1736890530988,0.00488844,96557.0,96556.0,0.0008533]
[1736890531190,0.001,96559.0,96556.0,0.0008533]
[1736890531394,0.00488844,96557.0,96556.0,0.0008533]
[1736890531637,0.288129,96558.0,96556.0,0.0008533]
[1736890531841,0.00489019,96557.0,96556.0,0.0008533]
[1736890534027,0.00789019,96557.0,96556.0,0.0008533]
[1736890534608,0.02413064,96557.0,96556.0,0.0008533]
[1736890534743,0.02113064,96557.0,96556.0,0.0008533]
[1736890535160,0.02613064,96557.0,96556.0,0.0008533]
[1736890535583,0.02213064,96557.0,96556.0,0.0008533]
[1736890536230,0.33348856,96557.0,96556.0,0.0008533]
[1736890536808,0.33748856,96557.0,96556.0,0.0008533]
[1736890537011,0.46438856,96557.0,96556.0,0.0008533]
[1736890538442,0.55676964,96557.0,96556.0,0.0008533]
[1736890539813,0.46438856,96557.0,96556.0,0.0008533]
[1736890540276,0.44814811,96557.0,96556.0,0.0008533]
[1736890542425,0.54072004,96557.0,96556.0,0.0008533]
[1736890543211,0.33358904,96557.0,96556.0,0.0008533]
[1736890543417,0.25258904,96557.0,96556.0,0.0008533]
[1736890543820,0.16001711,96557.0,96556.0,0.0008533]
[1736890544025,0.24101711,96557.0,96556.0,0.0008533]
[1736890544628,0.25725824,96557.0,96556.0,0.0008533]
[1736890546595,0.36148516,96557.0,96556.0,0.0008533]
[1736890547188,0.25725824,96557.0,96556.0,0.0008533]
[1736890547651,0.25625824,96557.0,96556.0,0.0008533]
[1736890547821,0.23601711,96557.0,96556.0,0.0008533]
[1736890548352,0.24201711,96557.0,96556.0,0.0018533]
[1736890549180,0.24501711,96557.0,96556.0,0.0018533]
[1736890549588,0.24201711,96557.0,96556.0,0.0018533]
[1736890549804,0.23601711,96557.0,96556.0,0.0008533]
[1736890550003,0.23901711,96557.0,96556.0,0.0008533]
[1736890550359,0.35224403,96557.0,96556.0,0.0018533]
[1736890550856,0.24801711,96557.0,96556.0,0.0018533]
[1736890552004,0.26425868,96557.0,96556.0,0.0018533]
[1736890552209,0.59405868,96557.0,96556.0,0.0018533]
[1736890552637,0.86705868,96557.0,96556.0,0.0018533]
[1736890553089,0.76705868,96557.0,96556.0,0.0018533]
[1736890553675,0.73505868,96557.0,96556.0,0.0008533]
[1736890554091,1.08577981,96557.0,96556.0,0.0018533]
[1736890554392,1.08277981,96557.0,96556.0,0.0018533]
[1736890554955,1.267899,96557.0,96556.0,0.0018533]
[1736890555600,1.271899,96557.0,96556.0,0.0018533]
[1736890556127,1.25565743,96557.0,96556.0,0.0018533]
[1736890556687,1.07053824,96557.0,96556.0,0.0018533]
[1736890559552,1.08678106,96557.0,96556.0,0.0018533]
[1736890560673,1.21400798,96557.0,96556.0,0.0018533]
[1736890560937,1.21992798,96557.0,96556.0,0.0018533]
[1736890562868,1.20368516,96557.0,96556.0,0.0018533]
[1736890563092,1.40368516,96557.0,96556.0,0.0018533]
[1736890563332,1.43474582,96557.0,96556.0,3e-07]
[1736890563567,0.357204,96523.0,96522.0,0.0008537]
[1736890563767,0.48896422,96523.0,96522.0,0.00090319]
[1736890563972,1.01876422,96523.0,96522.0,0.00090319]
[1736890565011,0.357247,96503.0,96502.0,0.0008538]
[1736890565185,0.46147392,96503.0,96502.0,0.00090345]
[1736890565384,0.46599541,96503.0,96502.0,0.00090345]
[1736890566382,0.57022233,96503.0,96502.0,0.00090345]
[1736890566710,0.58354807,96503.0,96502.0,0.00090345]
[1736890566921,0.58454807,96503.0,96502.0,0.00090345]
[1736890570169,0.73974807,96503.0,96502.0,0.00090345]
[1736890571993,0.73574807,96503.0,96502.0,0.00090345]
[1736890572390,0.74874807,96503.0,96502.0,0.00090345]
[1736890572624,0.53862115,96503.0,96502.0,0.00090345]
[1736890572953,0.50749286,96503.0,96502.0,0.00090345]
[1736890573186,0.49624115,96503.0,96502.0,0.00190345]
[1736890586359,0.47999541,96503.0,96502.0,0.00190345]
[1736890587325,0.56711541,96503.0,96502.0,0.00190345]
[1736890587497,0.67134233,96503.0,96502.0,0.00190345]
[1736890587738,1.02414233,96503.0,96502.0,0.00190345]
[1736890587939,1.32737291,96503.0,96502.0,0.00190345]
[1736890588139,1.32737291,96503.0,96502.0,4.5e-07]
[1736890588349,1.33637291,96503.0,96502.0,4.5e-07]
[1736890588474,0.35,96501.0,96500.0,5.9e-07]
[1736890588675,0.71025384,96501.0,96500.0,8.6e-07]
[1736890588889,0.71466728,96501.0,96500.0,8.6e-07]
[1736890589399,0.74620708,96501.0,96500.0,8.6e-07]
[1736890589830,0.561464,96495.0,96494.0,0.0008537]
[1736890590029,0.561464,96495.0,96494.0,0.0009033]
[1736890590030,0.66569092,96495.0,96494.0,0.0009033]
[1736890590230,0.77433111,96495.0,96494.0,0.0009033]
[1736890591009,1.10413111,96495.0,96494.0,0.0009033]
[1736890591934,1.11913111,96495.0,96494.0,0.0009033]
[1736890592342,1.26673111,96495.0,96494.0,0.0009033]
[1736890592743,1.16250419,96495.0,96494.0,0.0009033]
[1736890592980,0.709088,96484.0,96461.0,0.00073913]
[1736890593146,0.709088,96484.0,96451.0,0.1224]
[1736890593147,0.81331492,96484.0,96455.0,0.00073913]
[1736890593352,0.81770076,96484.0,96455.0,0.00073913]
[1736890594187,0.81770076,96484.0,96451.0,0.1224]
[1736890594764,0.81770076,96484.0,96451.0,0.075]
[1736890594765,0.1,96467.0,96451.0,0.075]
[1736890594942,0.380339,96460.0,96459.0,0.0010024]
[1736890595132,0.48456592,96460.0,96459.0,0.0010024]
[1736890595336,0.4889253,96460.0,96459.0,0.0010024]
[1736890595547,0.59315222,96460.0,96459.0,0.0010024]
[1736890596302,0.4889253,96460.0,96459.0,0.0010024]
[1736890597020,0.4659253,96460.0,96459.0,0.0010024]
[1736890597435,0.48556453,96460.0,96459.0,0.0010024]
[1736890598295,0.47656453,96460.0,96459.0,0.0010024]
[1736890598448,0.48556453,96460.0,96459.0,0.0010024]
[1736890598649,0.58979145,96460.0,96459.0,0.0010024]
[1736890598971,0.59379145,96460.0,96459.0,0.0010024]
[1736890599173,0.48956453,96460.0,96459.0,0.0010024]
[1736890599423,0.48556453,96460.0,96459.0,0.0010024]
[1736890599730,0.48856453,96460.0,96459.0,0.0010024]
[1736890601561,0.49448453,96460.0,96459.0,0.0010024]
[1736890610985,0.48856453,96460.0,96459.0,0.0010024]
[1736890611210,0.49448453,96460.0,96459.0,0.0010024]
[1736890612973,0.58539918,96460.0,96459.0,0.0010024]
[1736890613442,0.49448453,96460.0,96459.0,0.0010024]
[1736890622541,0.02329065,96460.0,96459.0,0.0814024]
[1736890623611,0.02029065,96460.0,96459.0,0.0814024]
[1736890623810,0.01129065,96460.0,96459.0,0.0814024]
[1736890624025,0.01529065,96460.0,96459.0,0.0814024]
[1736890624280,0.004,96460.0,96459.0,0.0814024]
[1736890627129,0.01531511,96460.0,96459.0,0.0814024]
[1736890629858,0.004,96460.0,96459.0,0.0814024]
[1736890630059,0.01530544,96460.0,96459.0,0.0814024]
[1736890630270,0.004,96460.0,96459.0,0.1274024]
[1736890630706,0.004,96460.0,96459.0,0.12843899]
[1736890632565,0.09217646,96478.0,96475.0,0.414613]
[1736890632773,0.00179341,96483.0,96477.0,0.1264]
[1736890633198,0.00179341,96483.0,96458.0,0.2008537]
[1736890633199,0.00179341,96483.0,96467.0,0.0804]
[1736890633368,0.00179341,96483.0,96467.0,0.08143646]
[1736890633934,0.207299,96479.0,96460.0,0.0804]
[1736890634157,0.10422692,96478.0,96460.0,0.08143658]
[1736890634594,0.15,96477.0,96460.0,0.0804]
[1736890634731,0.12400792,96470.0,96460.0,0.0804]
[1736890634935,0.10422692,96469.0,96459.0,0.0010024]
[1736890636673,0.207307,96475.0,96459.0,0.0010024]
[1736890636674,0.09217646,96475.0,96468.0,0.207322]
[1736890636890,0.09217646,96475.0,96469.0,0.00103651]
[1736890637095,0.09217646,96475.0,96474.0,0.207309]
[1736890637449,0.09217646,96475.0,96470.0,0.20835447]
[1736890637805,0.00179341,96483.0,96474.0,0.414618]
[1736890638037,0.00179341,96483.0,96475.0,0.00103641]
[1736890639611,0.00479341,96483.0,96472.0,0.207313]
[1736890639847,0.00479341,96483.0,96473.0,0.00103641]
[1736890640232,0.00479341,96483.0,96474.0,0.207309]
[1736890640577,0.00479341,96483.0,96475.0,0.00103642]
[1736890640724,0.00179341,96483.0,96475.0,0.05069226]
[1736890640933,0.01079341,96483.0,96475.0,0.05069226]
[1736890641143,0.00179341,96483.0,96475.0,0.05069226]
[1736890642490,0.00179341,96483.0,96475.0,0.00103642]
[1736890642658,0.00179341,96483.0,96475.0,0.00103641]
[1736890645162,0.10422692,96482.0,96469.0,0.0809]
[1736890645298,0.207294,96481.0,96462.0,0.08193651]
[1736890645666,0.01043398,96480.0,96462.0,0.08193651]
[1736890645875,0.01043398,96480.0,96463.0,0.207333]
[1736890645998,0.01043398,96480.0,96464.0,0.00103651]
[1736890647645,0.10422692,96479.0,96462.0,0.0809]
[1736890648046,0.01043359,96478.0,96463.0,0.00103655]
[1736890648371,0.11466051,96478.0,96463.0,0.00103655]
[1736890649012,0.11466051,96478.0,96464.0,0.207331]
[1736890650252,0.01043359,96478.0,96465.0,0.00103655]
[1736890650679,0.003,96478.0,96465.0,0.00103655]
[1736890650907,0.003,96478.0,96469.0,0.0809]
[1736890651119,0.00179382,96481.0,96480.0,0.288196]
[1736890651867,0.00179382,96481.0,96480.0,0.43912292]
[1736890652501,0.00179382,96481.0,96480.0,0.4494509]
[1736890653358,0.00179382,96481.0,96480.0,0.47027172]
[1736890653566,0.00179382,96481.0,96480.0,0.57449864]
[1736890654080,0.00279382,96481.0,96480.0,0.57449864]
[1736890668018,0.00279382,96481.0,96480.0,0.67449864]
[1736890681426,0.00279382,96481.0,96480.0,0.92449864]
[1736890683485,2.3e-07,96483.0,96482.0,0.35]
[1736890683682,2.3e-07,96483.0,96482.0,0.61318772]
[1736890683886,2.3e-07,96483.0,96482.0,0.64553199]
[1736890684802,2.3e-07,96483.0,96482.0,0.62253199]
[1736890685004,2.3e-07,96483.0,96482.0,0.64553199]
[1736890685391,2.3e-07,96483.0,96482.0,0.78463084]
[1736890686287,2.3e-07,96483.0,96482.0,2.28663084]
[1736890686491,2.3e-07,96483.0,96482.0,0.78663084]
[1736890688047,2.3e-07,96483.0,96482.0,0.64753199]
[1736890689285,2.3e-07,96483.0,96482.0,0.78663084]
[1736890690502,2.3e-07,96483.0,96482.0,0.64753199]
[1736890692297,5.8e-07,96483.0,96482.0,0.64753199]
[1736890692493,5.8e-07,96483.0,96482.0,0.83299712]
[1736890692917,5.8e-07,96483.0,96482.0,0.62709712]
[1736890693686,5.8e-07,96483.0,96482.0,0.59475285]
[1736890694747,5.8e-07,96483.0,96482.0,0.24052593]
[1736890695177,5.8e-07,96483.0,96482.0,0.0550608]
[1736890695378,5.8e-07,96483.0,96482.0,0.05609711]
[1736890696690,5.8e-07,96483.0,96482.0,0.26032403]
[1736890696874,0.00179319,96495.0,96494.0,0.207266]
[1736890697083,0.00179319,96495.0,96494.0,0.35509894]
[1736890697240,0.00179319,96495.0,96494.0,0.43356284]
[1736890697653,1.9e-07,96495.0,96494.0,0.78356284]
[1736890698232,1.9e-07,96495.0,96494.0,0.78956284]
[1736890698622,1.9e-07,96495.0,96494.0,0.82193065]
[1736890699224,1.9e-07,96495.0,96494.0,0.83255891]
[1736890699381,0.0488,96518.0,96494.0,0.83255891]
[1736890699382,0.0488,96518.0,96503.0,0.1]
[1736890699584,0.04884963,96518.0,96517.0,0.207217]
[1736890700488,0.00104963,96518.0,96517.0,0.207217]
[1736890700685,0.00104963,96518.0,96517.0,0.20825302]
[1736890700876,0.00404963,96518.0,96517.0,0.20825302]
[1736890701082,0.00304963,96518.0,96517.0,0.20825302]
[1736890701288,0.00304963,96518.0,96517.0,0.27052302]
[1736890701556,0.00304963,96518.0,96517.0,0.269487]
[1736890702118,0.00304963,96518.0,96517.0,0.27984565]
[1736890702455,0.00104963,96518.0,96517.0,0.27984565]
[1736890702803,4.963e-05,96518.0,96517.0,0.28284565]